[Event "FRA-ch Teams Top 16-Haute 2022"]
[Site "Chartres"]
[Date "2022.06.16"]
[Round "8.17"]
[White "Mamedov, Rauf"]
[Black "Moussard, Jules"]
[Result "1/2-1/2"]
[ECO "B22"]
[WhiteElo "2656"]
[BlackElo "2651"]
[Annotator "TA"]
[PlyCount "71"]
[EventDate "2022.06.16"]
[EventType "team-tourn"]
[EventCountry "FRA"]
[SourceTitle "playchess.com"]
[Source "ChessBase"]
[SourceQuality "1"]
[TimeControl "40/5400+30:1800+30"]

{[%evp 9,71,12,0,8,0,-7,25,14,17,-12,0,8,0,3,8,9,6,22,9,-1,29,14,17,13,6,9,9,6,5,0,12,0,0,0,0,0,2,0,0,-15,-12,-38,-21,-66,-58,-74,-68,-58,4,4,35,41,43,43,43,41,41,23,21,20,20,20,20,14]} 1. e4 {[%emt 0:00:08][%cal Be2e4,Be4e5][%mdl 32]} c5 {[%emt 0:00:42]} 2. c3 {[%emt 0:00:03]} Nf6 {[%emt 0:00:29]} 3. e5 {[%emt 0:00:05]} Nd5 {[%emt 0:00:06]} 4. Bc4 {[%emt 0:00:03]} Nb6 {[%emt 0:01:51]} 5. Bb3 {[%emt 0:00:25]} d6 {[%emt 0:03:42]} 6. exd6 {[%emt 0:01:05] B22: Sicilian: 2 c3.} Qxd6 {[%emt 0:00:10]} 7. Na3 {[%emt 0:00:04]} Be6 {[%emt 0:17:00] [#]} 8. Ne2 $146 {[%emt 0:13:26] White has an edge.} ({Predecessor:} 8. Nf3 Bxb3 9. Qxb3 Qc6 10. d4 c4 11. Qb5 a6 12. Qa5 N8d7 13. b3 e6 14. O-O {½-½ (22) Lyell,M (2193)-Szeberenyi,A (2381) Budapest 2016}) 8... Bxb3 {[%emt 0:06:32]} 9. Qxb3 {[%emt 0:20:11]} Qc6 {[%emt 0:10:54]} 10. O-O {[%emt 0:15:15]} N8d7 {[%emt 0:01:59]} 11. d4 {[%emt 0:01:01]} c4 {[%emt 0:02:27]} 12. Qb5 {[%emt 0:01:10]} Rc8 {[%emt 0:06:35]} 13. Qxc6 {[%emt 0:03:21]} Rxc6 {[%emt 0:00:13]} 14. b3 {[%emt 0:00:18]} a6 {[%emt 0:14:28]} 15. Rb1 {[%emt 0:01:14] And now bxc4 would win.} e6 {[%emt 0:01:07]} 16. Nxc4 {[%emt 0:01:27]} Nxc4 {[%emt 0:00:16]} 17. bxc4 {[%emt 0:00:04]} b6 {[%emt 0:00:17]} 18. c5 {[%emt 0:00:39]} bxc5 {[%emt 0:00:07]} 19. Be3 {[%emt 0:12:36]} cxd4 {[%emt 0:03:07]} 20. Nxd4 {[%emt 0:05:01]} Rc7 {[%emt 0:05:12]} 21. Rfd1 {[%emt 0:01:29]} Bc5 {[%emt 0:03:08]} 22. Bf4 {[%emt 0:06:55]} Rc8 {[%emt 0:00:56]} (22... e5 $2 {[#]} 23. Bxe5 $1 {[%mdl 512]} Rc8 24. Bxg7 $18) 23. Nb3 {[%emt 0:02:43]} Bb6 {[%emt 0:01:26]} 24. Rd6 {[%emt 0:04:51]} Ke7 {[%emt 0:02:01]} 25. Rbd1 {[%emt 0:03:18]} Rhd8 {[%emt 0:00:18] [#] White must now prevent ...Bc7.} 26. Nd4 {[%emt 0:00:07]} Bxd4 {[%emt 0:02:08]} 27. cxd4 {[%emt 0:00:17]} (27. R1xd4 $2 e5 28. Rxd7+ (28. Bg5+ $2 f6 $19) 28... Rxd7 29. Bxe5 f6 30. Rxd7+ Kxd7 $19) 27... g5 $1 {[%emt 0:00:32]} 28. Bg3 {[%emt 0:00:15]} Nb8 {[%emt 0:00:59]} ({Black should try} 28... f5 $1 $15 29. Re1 (29. Rxa6 $2 f4 $19) 29... f4 30. Rdxe6+ (30. Rexe6+ Kf7 $17) 30... Kf7 31. Rxa6 (31. Re7+ Kg8 $17) 31... Ra8 32. Rxa8 Rxa8 33. Bxf4 gxf4) 29. Rxd8 $11 {[%emt 0:02:21]} Kxd8 {[%emt 0:04:17][%mdl 4096] Endgame KRB-KRN} 30. d5 {[%emt 0:01:39]} Ke7 {[%emt 0:00:27]} 31. h4 {[%emt 0:00:41]} h6 {[%emt 0:00:31]} 32. dxe6 {[%emt 0:02:16]} fxe6 {[%emt 0:00:06]} 33. Bd6+ {[%emt 0:00:44]} Kf6 {[%emt 0:00:05]} 34. hxg5+ {[%emt 0:01:04] The position is equal.} hxg5 {[%emt 0:00:03]} 35. Rd3 {[%emt 0:00:12]} Rc1+ {[%emt 0:00:56]} 36. Kh2 {[%emt 0:00:04] Weighted Error Value: White=0.05 (flawless) /Black=0.06 (flawless)} 1/2-1/2

[Event "FRA-ch Teams Top 16-Haute 2022"]
[Site "Chartres"]
[Date "2022.06.16"]
[Round "8.18"]
[White "Vachier-Lagrave, Maxime"]
[Black "Tiviakov, Sergei"]
[Result "1-0"]
[ECO "B01"]
[WhiteElo "2750"]
[BlackElo "2567"]
[Annotator "TA"]
[PlyCount "87"]
[EventDate "2022.06.16"]
[EventType "team-tourn"]
[EventCountry "FRA"]
[SourceTitle "playchess.com"]
[Source "ChessBase"]
[SourceQuality "1"]
[TimeControl "40/5400+30:1800+30"]

{[%evp 9,87,45,48,45,45,36,45,43,52,50,60,53,54,37,45,44,56,39,55,50,58,47,52,50,57,52,66,65,68,58,83,78,105,97,130,49,43,45,42,41,49,31,60,60,61,83,49,0,47,47,44,39,42,34,64,63,63,54,65,47,52,34,82,87,96,126,558,536,6227,6179,5321,5306,29981,29982,29992,29988,29987,29984,29984,29985]} 1. e4 {[%emt 0:00:02]} d5 {[%emt 0:00:06]} 2. exd5 {[%emt 0:00:04]} Qxd5 {[%emt 0:00:06]} 3. Nc3 {[%emt 0:00:03]} Qd6 {[%emt 0:00:07]} 4. d4 {[%emt 0:00:03]} Nf6 {[%emt 0:00:06]} 5. Nf3 {[%emt 0:00:03]} c6 {[%emt 0:00:07]} 6. g3 {[%emt 0:00:08] B01: Scandinavian Defence.} Bg4 {[%emt 0:01:19]} 7. Bg2 {[%emt 0:00:08]} e6 {[%emt 0:00:05]} 8. O-O {[%emt 0:00:09] White is slightly better.} Be7 {[%emt 0:00:08]} 9. Bf4 {[%emt 0:00:21]} Qd8 {[%emt 0:00:52]} 10. h3 {[%emt 0:00:40]} Bh5 {[%emt 0:04:54]} 11. Ne2 $5 {[%emt 0:01:05][%mdl 4] An interesting side line.} O-O {[%emt 0:01:08]} 12. c4 {[%emt 0:00:06]} Nbd7 {[%emt 0:00:48]} 13. a3 {[%emt 0:00:26] [#]} Re8 $146 {[%emt 0:03:35]} ({Predecessor:} 13... a5 14. Nc3 h6 15. g4 Bg6 16. Qe2 a4 17. Rad1 Re8 18. Kh1 Qb6 19. Ne5 Nxe5 20. dxe5 {1-0 (55) Larsson,M (2287)-Ovaskainen,J (2300) ICCF email 2017}) 14. Re1 {[%emt 0:04:53]} Ne4 {[%emt 0:11:15]} 15. Rc1 {[%emt 0:09:26][%cal Ba1c1,Bc1c3,Bc3b3][%mdl 32]} Bg6 {[%emt 0:19:40]} 16. Nc3 {[%emt 0:09:44]} Nxc3 {[%emt 0:00:16]} 17. Rxc3 {[%emt 0:00:05]} Rc8 {[%emt 0:04:38]} 18. Rb3 {[%emt 0:06:46]} b6 {[%emt 0:07:10]} 19. Rbe3 {[%emt 0:03:05]} Bf6 {[%emt 0:03:59]} 20. b4 {[%emt 0:06:34]} b5 {[%emt 0:04:23]} 21. c5 {[%emt 0:57:09]} Be7 {[%emt 0:36:18]} 22. d5 {[%emt 0:00:00]} (22. a4 $16) 22... cxd5 $14 {[%emt 0:00:00]} 23. Nd4 {[%emt 0:00:00]} Nxc5 {[%emt 0:00:00]} 24. bxc5 {[%emt 0:00:00]} Bxc5 {[%emt 0:01:30]} 25. h4 {[%emt 0:00:00]} ({Of course not} 25. Nxb5 Qb6 26. Bf1 a6 $17) 25... Qb6 {[%emt 0:00:00]} 26. Be5 {[%emt 0:00:00]} Rf8 {[%emt 0:00:00][%cal Og6e4]} 27. Rb3 {[%emt 0:00:00] White is much more active.} a6 {[%emt 0:00:00]} 28. Re2 {[%emt 0:00:00]} (28. Kh2 $14 {is superior.}) 28... Bd6 {[%emt 0:00:00]} (28... Kh8 $11) 29. Nf3 {[%emt 0:00:00]} Rc4 {[%emt 0:00:00]} 30. Bxd6 {[%emt 0:00:00]} Qxd6 {[%emt 0:00:00]} 31. Ne5 {[%emt 0:00:00]} Bh5 {[%emt 0:00:00]} 32. Bf3 {[%emt 0:00:00]} ({Much weaker is} 32. Nxc4 bxc4 33. Rc3 Bxe2 34. Qxe2 h6 $15) 32... Bxf3 {[%emt 0:00:00]} 33. Rxf3 {[%emt 0:00:00]} Rc7 {[%emt 0:00:00]} 34. Rd3 {[%emt 0:00:00]} Rfc8 {[%emt 0:00:17] White must now prevent ...Rc1.} 35. Kg2 {[%emt 0:00:00]} Rc3 {[%emt 0:01:18]} (35... Rc5 $14) 36. h5 $16 {[%emt 0:00:00][%cal Bh4h5,Bh5h6][%mdl 32]} Qxa3 {[%emt 0:02:08]} 37. Rc2 {[%emt 0:00:00]} b4 {[%emt 0:00:31][%mdl 8192] [#] This move loses the game for Black.} (37... Qb4 $16 {is a better chance.} 38. Rdxc3 Rxc3) 38. h6 $1 $18 {[%emt 0:00:00][%cal Od1g4] Intending Qg4! and mate.} Qa5 {[%emt 0:00:31] [#]} (38... Rxc2 39. Rxa3) 39. Qg4 $1 {[%emt 0:00:00][%csl Gh6][%cal Rg4g7]} g6 {[%emt 0:00:02]} 40. Rcxc3 {[%emt 0:03:04]} bxc3 {[%emt 0:00:06]} 41. Qh4 {[%emt 0:30:20] White mates.} Qa3 {[%emt 0:32:44]} 42. Qf6 {[%emt 0:00:34][%csl Gh6][%cal Rf6g7]} Qf8 {[%emt 0:00:06] [#]} 43. Rxc3 $3 {[%emt 0:00:12][%mdl 512]} Rxc3 {[%emt 0:00:10]} 44. Nd7 $1 {[%emt 0:00:04][%csl LRc3,LRf8][%mdl 64] Discovered Attack.  Weighted Error Value: White=0.06 (flawless) /Black=0.49} 1-0

[Event "FRA-ch Teams Top 16-Haute 2022"]
[Site "Chartres"]
[Date "2022.06.16"]
[Round "8.19"]
[White "Lagarde, Maxime"]
[Black "Alekseenko, Kirill"]
[Result "0-1"]
[ECO "A20"]
[WhiteElo "2628"]
[BlackElo "2698"]
[Annotator "TA"]
[PlyCount "66"]
[EventDate "2022.06.16"]
[EventType "team-tourn"]
[EventCountry "FRA"]
[SourceTitle "playchess.com"]
[Source "ChessBase"]
[SourceQuality "1"]
[TimeControl "40/5400+30:1800+30"]

{[%evp 9,66,11,8,8,11,15,10,18,8,7,8,16,6,2,15,11,27,9,25,25,22,21,31,19,50,39,63,83,60,62,54,51,75,79,133,-45,-54,-56,-37,-165,-175,-180,-180,-158,-171,-181,-129,-260,-262,-264,-183,-1187,-1143,-1130,-1065,-29987,-29988,-29988,-29989]} 1. c4 {[%emt 0:00:59]} e5 {[%emt 0:00:19]} 2. g3 {[%emt 0:00:05]} c6 {[%emt 0:00:58]} 3. Nf3 {[%emt 0:00:05]} e4 {[%emt 0:00:30]} 4. Nd4 {[%emt 0:00:04][%cal Bf3d4,Bd4c2,Bc2e1,Be1d3,Bd3f4][%mdl 32]} d5 {[%emt 0:00:37]} 5. cxd5 {[%emt 0:00:14]} Qxd5 {[%emt 0:00:42]} 6. Nc2 {[%emt 0:00:05] A20: English Opening: 1...e5.} Nf6 {[%emt 0:00:57]} 7. Nc3 {[%emt 0:00:06]} Qe5 {[%emt 0:00:37] The main line 7...Qe5 scores better than 7...Qh5.} 8. Bg2 {[%emt 0:00:18] The position is equal.} Na6 {[%emt 0:01:13]} 9. O-O {[%emt 0:00:48]} Be7 {[%emt 0:00:06]} 10. Ne1 {[%emt 0:00:07] [#]} O-O $146 {[%emt 0:17:18]} ({Predecessor:} 10... Nb4 11. f3 exf3 12. Nxf3 Qh5 13. d4 Nbd5 14. e4 Nxc3 15. bxc3 Nxe4 16. Re1 f5 {½-½ (44) Giri,A (2772)-Praggnanandhaa,R (2612) Wijk aan Zee 2022}) 11. d4 {[%emt 0:00:15]} exd3 {[%emt 0:00:14]} 12. Nxd3 {[%emt 0:00:05]} Qh5 {[%emt 0:00:33]} 13. e4 {[%emt 0:00:05]} Bg4 {[%emt 0:02:30]} 14. f3 {[%emt 0:18:54]} Be6 {[%emt 0:00:46] aiming for ...Rfd8.} 15. Nf4 {[%emt 0:16:17]} Qc5+ {[%emt 0:01:14]} 16. Rf2 $1 {[%emt 0:01:05]} Qb6 {[%emt 0:20:58] Threatens to win with ...Bc5.} 17. Na4 {[%emt 0:12:56]} ({Don't play} 17. Nxe6 fxe6 18. Na4 Rad8 $17) 17... Qc7 {[%emt 0:01:20]} 18. Nxe6 {[%emt 0:13:19]} fxe6 {[%emt 0:00:05]} 19. Be3 {[%emt 0:08:23]} b5 {[%emt 0:03:49]} 20. Bf1 {[%emt 0:01:46]} Rad8 {[%emt 0:05:33] [#]} 21. Qb3 {[%emt 0:03:28]} Qc8 {[%emt 0:21:56]} (21... Kf7 $142) 22. Rc1 $2 {[%emt 0:05:17]} bxa4 $15 {[%emt 0:03:25]} 23. Qxa4 {[%emt 0:00:04]} Nb4 {[%emt 0:02:14]} 24. a3 {[%emt 0:08:41]} (24. Rc3 $1 $15 c5 25. a3) 24... Nd3 $19 {[%emt 0:00:32]} 25. Rxc6 {[%emt 0:00:08]} Qb7 {[%emt 0:02:27]} 26. Bxd3 {[%emt 0:02:47]} Rxd3 {[%emt 0:00:05]} 27. Bf4 {[%emt 0:00:06]} Bd8 {[%emt 0:03:00] Against Rc7} (27... Rc8 $19 28. Rxc8+ Qxc8) 28. Kg2 {[%emt 0:01:28] Now White is beyond hope.} (28. Rxe6 $17 {was worth a try.} Qf7 29. Rd6) 28... Bb6 {[%emt 0:00:28]} 29. Rfc2 {[%emt 0:01:12]} Nh5 {[%emt 0:01:44]} 30. Bd6 {[%emt 0:01:35]} (30. Bc7) 30... Qf7 {[%emt 0:01:59]} 31. f4 {[%emt 0:00:01] [#]} Rxd6 $1 {[%emt 0:00:41][%mdl 512]} 32. Rxd6 {[%emt 0:00:02] [#]} (32. f5 Rd1) 32... Nxf4+ $1 {[%emt 0:00:11][%mdl 512]} 33. gxf4 {[%emt 0:00:50]} Qxf4 {[%emt 0:00:08] Weighted Error Value: White=0.57/Black=0.11 (very precise)} 0-1

[Event "FRA-ch Teams Top 16-Haute 2022"]
[Site "Chartres"]
[Date "2022.06.16"]
[Round "8.20"]
[White "Esipenko, Andrey"]
[Black "Kamsky, Gata"]
[Result "1/2-1/2"]
[ECO "D15"]
[WhiteElo "2709"]
[BlackElo "2661"]
[Annotator "TA"]
[PlyCount "121"]
[EventDate "2022.06.16"]
[EventType "team-tourn"]
[EventCountry "FRA"]
[SourceTitle "playchess.com"]
[Source "ChessBase"]
[SourceQuality "1"]
[TimeControl "40/5400+30:1800+30"]

{[%evp 14,121,35,23,52,45,57,54,60,43,84,75,82,63,97,86,79,50,131,111,142,120,166,154,135,103,100,89,89,96,77,75,132,56,62,63,72,-65,-59,-56,-44,-66,-48,-64,-47,-152,-146,-149,-157,-253,-254,-216,-108,-119,-104,-241,-246,-351,-349,-346,-352,-347,-346,-344,-284,-281,-233,-481,-294,-247,-139,-167,-165,-178,-193,-235,-137,-148,-78,-76,-64,-141,-72,-62,0,0,0,-22,-9,-23,0,-8,0,0,0,0,0,0,0,0,0,0,0,0,0,0,0,0,0,0]} 1. d4 {[%emt 0:00:04]} d5 {[%emt 0:01:13]} 2. c4 {[%emt 0:00:49]} c6 {[%emt 0:00:07]} 3. Nf3 {[%emt 0:00:24]} Nf6 {[%emt 0:00:07]} 4. Nc3 {[%emt 0:00:15]} a6 {[%emt 0:00:07]} 5. c5 {[%emt 0:00:25]} g6 {[%emt 0:04:59]} 6. h3 {[%emt 0:00:24]} Bg7 {[%emt 0:01:08]} 7. Bf4 {[%emt 0:00:12]} O-O {[%emt 0:02:26]} 8. e3 {[%emt 0:00:07]} Bf5 $1 {[%emt 0:01:37][%mdl 4] outshines the older 8...Nbd7. D15: Slav Defence: 4 Nc3 a6 and gambit lines after 4 Nc3 dxc4.} 9. Qb3 {[%emt 0:00:32]} Qc8 {[%emt 0:00:41]} 10. Be2 {[%emt 0:00:13]} Nbd7 {[%emt 0:04:53] White is slightly better.} 11. O-O {[%emt 0:00:28]} h6 {[%emt 0:02:19]} 12. Bh2 {[%emt 0:11:04] [#]} a5 $146 {[%emt 0:10:22]} ({Predecessor:} 12... g5 13. Na4 Ra7 14. Rac1 Re8 15. Rfd1 Nf8 16. Ne5 N6d7 17. g4 Bh7 18. Bd3 Bxd3 19. Qxd3 Nxe5 20. dxe5 {1-0 (30) Ikonnikov,V (2538)-Wilschut,P (2237) Leiden 2016}) 13. Rac1 {[%emt 0:21:42]} Re8 {[%emt 0:08:24]} 14. Na4 {[%emt 0:07:29]} Ra7 {[%emt 0:00:13]} 15. Nh4 {[%emt 0:01:40]} (15. g4 {looks sharper.} Be4 16. Nb6 Qd8 17. Nd2) 15... Be6 {[%emt 0:01:16]} (15... e5 $1 $14) 16. Qc2 {[%emt 0:00:51]} Qd8 {[%emt 0:16:11]} 17. Bd3 $1 {[%emt 0:02:44]} g5 {[%emt 0:05:38]} (17... Nf8 $16 18. b3 g5) 18. Nf3 $1 $18 {[%emt 0:09:49]} g4 {[%emt 0:01:34]} 19. hxg4 {[%emt 0:00:28]} Bxg4 {[%emt 0:00:05]} 20. Kh1 {[%emt 0:09:46]} Bh5 {[%emt 0:05:26]} 21. Bg3 {[%emt 0:13:45] 0x0.00207a49ca3ddp-1022s more active pieces. The black rooks are badly placed.} Ng4 {[%emt 0:02:40]} 22. Rce1 {[%emt 0:04:25]} e5 {[%emt 0:01:14]} (22... e6 $142) 23. e4 {[%emt 0:01:05]} (23. Bh4 $1 $16 Bf6 24. Bh7+ Kg7 25. Qf5 (25. Bxf6+ Ndxf6 26. Bf5 Bg6 $11) 25... Bxh4 26. Qxh5 Nxf2+ 27. Kh2) 23... f5 $1 $14 {[%emt 0:01:18]} 24. exd5 {[%emt 0:02:46]} (24. exf5 e4 $11) 24... e4 {[%emt 0:00:04] [#]} 25. dxc6 {[%emt 0:01:32]} (25. Bc4 $1 $16 Kh8 26. Ng1) 25... bxc6 $15 {[%emt 0:00:37]} 26. Bc4+ {[%emt 0:00:13]} Kh8 {[%emt 0:00:08]} 27. Ng1 {[%emt 0:00:34]} Bxd4 {[%emt 0:02:28]} 28. Nh3 {[%emt 0:01:10]} Qf6 {[%emt 0:09:45]} 29. Rd1 {[%emt 0:04:38]} ({Better is} 29. Be2 $15) 29... Be5 $1 $17 {[%emt 0:00:06]} (29... Nxc5 30. Nf4 Nxf2+ 31. Bxf2 Bxd1 32. Bxd4 (32. Rxd1 $2 Bxf2 33. Qxf2 e3 $17) 32... Qxd4 33. Rxd1 $11) 30. Qc1 {[%emt 0:01:02] [#]} e3 $1 {[%emt 0:04:09]} 31. f4 {[%emt 0:01:08]} (31. Be2 $17 {is a better defense.}) 31... Bd4 $19 {[%emt 0:03:23]} 32. Be2 {[%emt 0:02:43]} Kh7 {[%emt 0:02:34]} (32... Nf8 $19 {Hoping for ...Rg7.} 33. Qc4 Ne6) 33. Qc2 $17 {[%emt 0:01:06][%cal Od1d4] [#]} Re4 $1 {[%emt 0:00:21]} 34. Nc3 {[%emt 0:00:28]} (34. Be1 $17) 34... Nxc5 $19 {[%emt 0:00:28][%cal Oa7g7] Threatens to win with ...Rg7!} (34... Bxc3 35. Rd6 Re6 36. Bxg4 Bxg4 37. Qxc3) 35. Nxe4 {[%emt 0:01:11]} (35. Be1 {was called for.}) 35... Nxe4 {[%emt 0:00:04]} 36. Be1 {[%emt 0:00:22]} c5 {[%emt 0:00:41]} (36... Bxb2 37. Bf3 $15) 37. Bf3 {[%emt 0:00:42]} Re7 {[%emt 0:01:26]} (37... Qa6 38. Bh4 $17) 38. Bxe4 {[%emt 0:00:29]} Rxe4 {[%emt 0:00:05]} 39. Rf3 {[%emt 0:00:37]} e2 {[%emt 0:02:26]} 40. Rb1 {[%emt 0:00:26]} (40. Rdd3) 40... Ne3 {[%emt 0:03:19]} 41. Qxe2 {[%emt 0:30:17]} Bxf3 {[%emt 0:05:28]} (41... Qf7 $19 42. Bc3 Qxa2) 42. Qxf3 $17 {[%emt 0:00:00]} a4 {[%emt 0:06:16] White must now prevent ...Ng4.} (42... Bxb2 43. Bxa5 Ng4 44. Qb3 $17) 43. Bd2 {[%emt 0:00:00]} Ng4 {[%emt 0:01:45]} 44. b3 {[%emt 0:00:00]} a3 {[%emt 0:00:26]} (44... Qe6 $19 {Strongly threatening ...Re2.} 45. bxa4 Qxa2 46. Rb7+ Kg6 47. Rb6+ (47. Qd1 $2 c4 $19) 47... Kf7 48. Rb7+ Kg6 49. Rb6+ (49. Qd1 $2 c4 $19) 49... Kh7 50. Rb7+ Kg6) 45. Re1 {[%emt 0:00:00] Prevents Re2.} Rxe1+ {[%emt 0:05:13]} ({Inferior is} 45... Qh4 46. Rxe4 Nf2+ 47. Kh2 fxe4 48. Qe2 $15) (45... Qe7 $142 46. Rxe4 Qxe4 47. Qxe4 fxe4) 46. Bxe1 {[%emt 0:00:00]} Qe6 {[%emt 0:00:05] Against Qd5} 47. Bc3 {[%emt 0:00:00]} ({White should try} 47. Qf1 $15) 47... Kg6 {[%emt 0:02:14]} (47... Qe4 $142 {( -> ...Qb1+)} 48. Qxe4 fxe4) 48. Ng1 {[%emt 0:00:00]} Nf2+ {[%emt 0:07:11]} (48... Be3 $15) 49. Kh2 $11 {[%emt 0:00:00]} Ng4+ {[%emt 0:00:05]} 50. Kh1 {[%emt 0:00:00]} Qf6 {[%emt 0:01:58]} 51. Be1 {[%emt 0:00:53]} c4 {[%emt 0:04:03] And now ...Qe6 would win.} (51... Qe7 $5 {[%cal Re7e1]} 52. Qe2 (52. Ne2 h5 $15) 52... Kf7 $15) 52. Ne2 {[%emt 0:02:21] The position is equal.} Be3 {[%emt 0:01:13]} 53. Qd5 $1 {[%emt 0:01:04]} cxb3 {[%emt 0:00:29] ...b2 is the strong threat.} 54. Qxb3 {[%emt 0:00:49]} Kh7 {[%emt 0:00:49] Against Qg8+} 55. Qxa3 {[%emt 0:00:55]} Qf7 {[%emt 0:01:08]} 56. Bh4 {[%emt 0:01:14]} Qc4 {[%emt 0:01:11][%csl LRe2,LRf4]} 57. Qe7+ {[%emt 0:00:59]} Kg8 {[%emt 0:01:00]} 58. Qe8+ {[%emt 0:00:26]} Kh7 $1 {[%emt 0:00:31]} 59. Be1 {[%emt 0:00:37][%cal Oa2a4]} Qxa2 {[%emt 0:00:50]} 60. Qe7+ {[%emt 0:00:34]} Kg6 {[%emt 0:00:08]} 61. Qe8+ {[%emt 0:00:23] Quite a comeback for White.  Weighted Error Value: White=0.22 (precise) /Black=0.21 (precise)} 1/2-1/2

[Event "FRA-ch Teams Top 16-Haute 2022"]
[Site "Chartres"]
[Date "2022.06.16"]
[Round "8.21"]
[White "Bauer, Christian"]
[Black "Cornette, Matthieu"]
[Result "1-0"]
[ECO "B33"]
[WhiteElo "2596"]
[BlackElo "2570"]
[Annotator "TA"]
[PlyCount "93"]
[EventDate "2022.06.16"]
[EventType "team-tourn"]
[EventCountry "FRA"]
[SourceTitle "playchess.com"]
[Source "ChessBase"]
[SourceQuality "1"]
[TimeControl "40/5400+30:1800+30"]

{[%evp 27,93,0,39,42,44,39,41,15,27,0,18,-37,-10,-53,-26,-83,-22,-31,-16,-118,-109,-139,-64,-78,0,0,0,0,0,0,0,0,27,33,76,70,103,58,91,93,102,56,106,106,106,115,90,93,152,120,118,119,212,199,201,66,105,98,381,133,467,468,468,460,433,433,409,398]} 1. e4 {[%emt 0:00:38]} c5 {[%emt 0:00:15]} 2. Nf3 {[%emt 0:00:22]} Nc6 {[%emt 0:00:08]} 3. d4 {[%emt 0:00:20]} cxd4 {[%emt 0:00:06]} 4. Nxd4 {[%emt 0:00:05]} Nf6 {[%emt 0:00:52]} 5. Nc3 {[%emt 0:00:06]} e5 {[%emt 0:00:09]} 6. Ndb5 {[%emt 0:01:42]} d6 {[%emt 0:00:17]} 7. Bg5 {[%emt 0:00:13]} a6 {[%emt 0:00:10]} 8. Na3 {[%emt 0:00:06]} b5 {[%emt 0:00:21]} 9. Bxf6 {[%emt 0:00:40]} gxf6 {[%emt 0:00:12]} 10. Nd5 {[%emt 0:00:05]} Bg7 {[%emt 0:00:29]} 11. c3 {[%emt 0:03:23]} f5 {[%emt 0:01:53]} 12. Bd3 {[%emt 0:02:49]} Ne7 {[%emt 0:00:50]} 13. Nxe7 {[%emt 0:02:26]} Qxe7 {[%emt 0:00:10]} 14. Nc2 {[%emt 0:01:36]} O-O {[%emt 0:32:07]} (14... Qb7 $5 {[%cal Rf5e4]}) 15. Qh5 {[%emt 0:07:32] B33: Sicilian: Pelikan and Sveshnikov Variations.} f4 {[%emt 0:06:07]} 16. O-O {[%emt 0:13:43]} Be6 {[%emt 0:09:15]} 17. Rfd1 {[%emt 0:08:03] White is slightly better.} Kh8 {[%emt 0:03:37]} 18. Rd2 {[%emt 0:06:23]} Rg8 {[%emt 0:06:42][%cal Og7h6] [#]} 19. Ne1 $146 {[%emt 0:08:58]} (19. Qd1 $11) ({Predecessor:} 19. Nb4 Bf8 20. Nd5 Qd8 21. a4 Rg6 22. Qd1 bxa4 23. Rxa4 Bh6 24. f3 Bg5 25. Bf1 {0-1 (36) Fragakis,E (2059)-Sismanis,A (2097) Aghia Pelagia 2004}) 19... Bf6 {[%emt 0:05:03] [#] ...Bg4 is the strong threat.} 20. Be2 {[%emt 0:09:09] Inhibits Bg4.} Bg5 {[%emt 0:07:58][%cal Of4f3] Strongly threatening ...f3!} 21. Qf3 {[%emt 0:11:41]} (21. Bg4 $11 {remains equal.}) 21... Bh6 {[%emt 0:00:29]} ({Black should play} 21... f5 $17 22. Rdd1 fxe4 23. Qxe4 Bf6) 22. a4 {[%emt 0:06:10]} Bg4 {[%emt 0:10:48]} 23. Qxg4 {[%emt 0:02:50]} (23. Qd3 $11 {keeps the balance.} f3 24. Nxf3 Bxd2 25. Nxd2) 23... Rxg4 $17 {[%emt 0:01:06]} 24. Bxg4 {[%emt 0:00:01]} Rg8 {[%emt 0:02:42]} (24... f3 $17 25. Rd5 fxg2 26. axb5 Rg8) 25. Bf3 $15 {[%emt 0:04:39]} f5 {[%emt 0:02:18]} ({Better is} 25... bxa4 $17 26. Rxa4 Qb7) 26. Rad1 $11 {[%emt 0:02:17]} Rd8 {[%emt 0:07:30]} 27. axb5 {[%emt 0:00:25]} axb5 {[%emt 0:00:11]} 28. Rd5 {[%emt 0:01:08]} fxe4 {[%emt 0:01:41]} 29. Bxe4 {[%emt 0:00:01]} Bf8 {[%emt 0:00:49][%cal Ob5b4]} 30. Rxb5 {[%emt 0:00:52]} Rd7 {[%emt 0:00:21]} 31. Nf3 {[%emt 0:01:00]} Ra7 {[%emt 0:00:19]} 32. g3 {[%emt 0:02:57]} Qe8 {[%emt 0:00:25] Inhibits Rb8.} 33. c4 {[%emt 0:01:24]} Be7 {[%emt 0:00:32]} 34. Kg2 {[%emt 0:00:26]} (34. Kh1 $16) 34... Rc7 {[%emt 0:01:02]} (34... Qc8 $14) 35. b3 $16 {[%emt 0:00:33] aiming for Ra1. White is much more active.} Ra7 {[%emt 0:00:05] Inhibits Ra1.} 36. Rbd5 {[%emt 0:01:51]} Qb8 {[%emt 0:00:31]} 37. R1d3 {[%emt 0:01:35]} fxg3 {[%emt 0:00:45]} (37... Kg7 $142) 38. hxg3 {[%emt 0:00:06]} Ra2 {[%emt 0:00:44]} 39. c5 {[%emt 0:00:56][%cal Rc5d6]} Qb4 {[%emt 0:00:13]} (39... Ra6 $16 {is a better defense.}) 40. cxd6 $18 {[%emt 0:00:43]} Bxd6 {[%emt 0:00:06]} 41. Bf5 {[%emt 0:15:56]} (41. Ng5 $18 Be7 42. Rxe5) 41... Bc5 {[%emt 0:13:45]} 42. Nd2 {[%emt 0:02:30] Against e4. Hoping for Ne4.} Bd4 $2 {[%emt 0:08:38][%mdl 8192]} (42... Ra7 $16 {was worth a try.}) 43. Ne4 $2 {[%emt 0:02:35]} (43. Rd8+ $18 {is the precise move to win.} Kg7 44. Ne4) 43... Ra7 $2 {[%emt 0:01:22][%mdl 8192] This move loses the game for Black.} (43... Qf8 $16 {is more resistant.}) 44. g4 {[%emt 0:05:44]} ({Less strong is} 44. Rd8+ Kg7 45. g4 Qa5 $18) 44... Qf8 {[%emt 0:03:31] Inhibits Rd8.} 45. Rh3 {[%emt 0:01:54]} Rg7 {[%emt 0:00:20] [#]} 46. Rd6 $1 {[%emt 0:01:42]} Qa8 {[%emt 0:02:18][%cal Og7g4]} (46... Bc5 47. Rf6) 47. Kh2 {[%emt 0:00:53] Weighted Error Value: White=0.26 (precise) /Black=0.53} 1-0